[Event "Championnat d'Europe de Blitz"]
[Date "2024.12.09"]
[White "Veljanoski, Andrej"]
[Black "Kadric, Denis"]
[WhiteElo "2304"]
[BlackElo "2544"]
[Round "8.49"]
[Result "0-1"]
[TimeControl "180+2"]

1. e4 {[%emt 00:00:01] [%clk 00:03:01]} d6 {[%clk 00:03:04]} 2. d4 {[%emt
00:00:02] [%clk 00:03:02]} Nf6 {[%emt 00:00:01] [%clk 00:03:05]} 3. Nc3 {[%clk
00:03:03]} e5 {[%clk 00:03:06]} 4. Nf3 {[%emt 00:00:03] [%clk 00:03:02]} Nbd7
{[%emt 00:00:01] [%clk 00:03:08]} 5. h3 {[%emt 00:00:10] [%clk 00:02:54]} c6
{[%emt 00:00:03] [%clk 00:03:07]} 6. a4 {[%emt 00:00:01] [%clk 00:02:54]} Be7
{[%emt 00:00:02] [%clk 00:03:08]} 7. Be3 {[%clk 00:02:55]} O-O {[%emt 00:00:02]
[%clk 00:03:08]} 8. Bc4 {[%emt 00:00:07] [%clk 00:02:50]} h6 {[%emt 00:00:09]
[%clk 00:03:01]} 9. O-O {[%emt 00:00:03] [%clk 00:02:49]} Re8 {[%clk 00:03:03]}
10. dxe5 {[%emt 00:00:04] [%clk 00:02:46]} dxe5 {[%emt 00:00:02] [%clk
00:03:03]} 11. Qe2 {[%emt 00:00:10] [%clk 00:02:37]} Qc7 {[%emt 00:00:20] [%clk
00:02:46]} 12. Rfd1 {[%emt 00:00:03] [%clk 00:02:35]} Nf8 {[%emt 00:00:03] [%clk
00:02:46]} 13. a5 {[%emt 00:00:29] [%clk 00:02:08]} Bb4 {[%emt 00:00:09] [%clk
00:02:39]} 14. Bd2 {[%emt 00:00:23] [%clk 00:01:47]} Bxa5 {[%emt 00:00:38] [%clk
00:02:03]} 15. Rxa5 {[%emt 00:00:11] [%clk 00:01:38]} Qxa5 {[%emt 00:00:01]
[%clk 00:02:04]} 16. Nb5 {[%emt 00:00:02] [%clk 00:01:38]} Qd8 {[%emt 00:00:23]
[%clk 00:01:43]} 17. Bc3 {[%emt 00:00:07] [%clk 00:01:32]} Qe7 {[%emt 00:00:23]
[%clk 00:01:23]} 18. Nd6 {[%emt 00:00:06] [%clk 00:01:28]} Rd8 {[%emt 00:00:14]
[%clk 00:01:12]} 19. Nxf7 {[%emt 00:01:00] [%clk 00:00:29]} Rxd1+ {[%emt
00:00:01] [%clk 00:01:12]} 20. Qxd1 {[%clk 00:00:31]} Be6 {[%emt 00:00:04] [%clk
00:01:11]} 21. Bxe6 {[%emt 00:00:07] [%clk 00:00:25]} Qxe6 {[%emt 00:00:03]
[%clk 00:01:10]} 22. N3xe5 {[%emt 00:00:03] [%clk 00:00:24]} Nxe4 {[%emt
00:00:06] [%clk 00:01:06]} 23. Bd4 {[%emt 00:00:04] [%clk 00:00:22]} c5 {[%emt
00:00:34] [%clk 00:00:34]} 24. Be3 {[%clk 00:00:23]} Ng6 {[%emt 00:00:03] [%clk
00:00:33]} 25. Nxg6 {[%emt 00:00:06] [%clk 00:00:19]} Qxg6 {[%emt 00:00:01]
[%clk 00:00:34]} 26. Ne5 {[%emt 00:00:09] [%clk 00:00:12]} Qf6 {[%emt 00:00:01]
[%clk 00:00:34]} 27. Qd5+ {[%emt 00:00:02] [%clk 00:00:13]} Kh8 {[%emt 00:00:05]
[%clk 00:00:31]} 28. Qxe4 {[%emt 00:00:01] [%clk 00:00:14]} Rd8 {[%emt 00:00:07]
[%clk 00:00:26]} 29. g3 {[%emt 00:00:01] [%clk 00:00:14]} b6 {[%emt 00:00:01]
[%clk 00:00:27]} 30. Kg2 {[%clk 00:00:15]} Kg8 {[%emt 00:00:05]} 31. Ng4 {[%emt
00:00:02] [%clk 00:00:14]} Qd6 {[%emt 00:00:11] [%clk 00:00:17]} 32. Kh2 {[%emt
00:00:01] [%clk 00:00:15]} Rf8 {[%emt 00:00:04] [%clk 00:00:15]} 33. Qc4+ {[%emt
00:00:05] [%clk 00:00:12]} Kh7 {[%emt 00:00:01] [%clk 00:00:16]} 34. Bf4 {[%emt
00:00:02] [%clk 00:00:12]} Qg6 {[%emt 00:00:03] [%clk 00:00:15]} 35. Ne5 {[%emt
00:00:02] [%clk 00:00:12]} Qf5 {[%emt 00:00:01] [%clk 00:00:16]} 36. Nd3 {[%emt
00:00:03] [%clk 00:00:11]} Re8 {[%emt 00:00:04] [%clk 00:00:14]} 37. Be3 {[%emt
00:00:04] [%clk 00:00:08]} g5 {[%emt 00:00:02] [%clk 00:00:15]} 38. Qa4 {[%emt
00:00:04] [%clk 00:00:06]} Re7 {[%clk 00:00:16]} 39. Qc6 {[%emt 00:00:02] [%clk
00:00:07]} Rf7 {[%emt 00:00:07] [%clk 00:00:11]} 40. Qd6 {[%emt 00:00:03] [%clk
00:00:06]} Rd7 {[%emt 00:00:03] [%clk 00:00:10]} 41. Qc6 {[%emt 00:00:02] [%clk
00:00:07]} Re7 {[%clk 00:00:10]} 42. b3 {[%emt 00:00:01] [%clk 00:00:07]} Rf7
{[%emt 00:00:01] [%clk 00:00:11]} 43. Qd6 {[%clk 00:00:08]} Rd7 {[%emt 00:00:01]
[%clk 00:00:13]} 44. Qc6 {[%clk 00:00:10]} Re7 {[%clk 00:00:14]} 45. Qa8 {[%emt
00:00:04] [%clk 00:00:07]} Qe6 {[%emt 00:00:05] [%clk 00:00:12]} 46. Qf3 {[%emt
00:00:05] [%clk 00:00:03]} Rf7 {[%clk 00:00:13]} 47. Qh5 {[%emt 00:00:03] [%clk
00:00:00]} 0-1

[Site "Europe Echecs"]

[Event "Championnat d'Europe de Blitz"]
[Date "2024.12.09"]
[White "Kizov, Atanas"]
[Black "Mueller, Magnus"]
[WhiteElo "2396"]
[BlackElo "2166"]
[Round "8.51"]
[Result "1/2-1/2"]
[TimeControl "180+2"]

1. d4 {[%clk 00:03:03]} Nf6 {[%emt 00:00:01] [%clk 00:03:03]} 2. Nf3 {[%emt
00:00:01] [%clk 00:03:04]} c5 {[%emt 00:00:03] [%clk 00:03:03]} 3. d5 {[%emt
00:00:01] [%clk 00:03:05]} e6 {[%emt 00:00:03] [%clk 00:03:02]} 4. Nc3 {[%emt
00:00:01] [%clk 00:03:05]} exd5 {[%emt 00:00:05] [%clk 00:03:00]} 5. Nxd5 {[%emt
00:00:01] [%clk 00:03:06]} Nxd5 {[%emt 00:00:01] [%clk 00:03:00]} 6. Qxd5 {[%emt
00:00:02] [%clk 00:03:06]} Nc6 {[%emt 00:00:01] [%clk 00:03:01]} 7. e4 {[%emt
00:00:12] [%clk 00:02:56]} Be7 {[%emt 00:00:03] [%clk 00:02:59]} 8. c3 {[%emt
00:00:19] [%clk 00:02:40]} O-O {[%emt 00:00:12] [%clk 00:02:49]} 9. Be2 {[%clk
00:02:41]} d6 {[%emt 00:00:03] [%clk 00:02:49]} 10. O-O {[%emt 00:00:01] [%clk
00:02:41]} Be6 {[%emt 00:00:02] [%clk 00:02:50]} 11. Qd1 {[%emt 00:00:01] [%clk
00:02:42]} d5 {[%emt 00:00:04] [%clk 00:02:48]} 12. exd5 {[%emt 00:00:02] [%clk
00:02:43]} Qxd5 {[%emt 00:00:06] [%clk 00:02:44]} 13. Qxd5 {[%emt 00:00:06]
[%clk 00:02:39]} Bxd5 {[%emt 00:00:01] [%clk 00:02:44]} 14. Be3 {[%emt 00:00:01]
[%clk 00:02:40]} Rad8 {[%emt 00:00:03] [%clk 00:02:43]} 15. Rfd1 {[%emt
00:00:09] [%clk 00:02:32]} b6 {[%emt 00:00:07] [%clk 00:02:39]} 16. h3 {[%emt
00:00:07] [%clk 00:02:28]} h6 {[%emt 00:00:02] [%clk 00:02:39]} 17. Nd2 {[%clk
00:02:28]} f5 {[%emt 00:00:17] [%clk 00:02:24]} 18. f4 {[%emt 00:00:23] [%clk
00:02:07]} Bf6 {[%emt 00:00:08] [%clk 00:02:18]} 19. Bf3 {[%emt 00:00:12] [%clk
00:01:57]} Rfe8 {[%emt 00:00:05] [%clk 00:02:16]} 20. Re1 {[%emt 00:00:25] [%clk
00:01:34]} Kf7 {[%emt 00:00:04] [%clk 00:02:13]} 21. a4 {[%emt 00:00:19] [%clk
00:01:18]} Bxf3 {[%emt 00:00:13] [%clk 00:02:02]} 22. Nxf3 {[%emt 00:00:01]
[%clk 00:01:18]} Re4 {[%emt 00:00:02] [%clk 00:02:02]} 23. g3 {[%emt 00:00:35]
[%clk 00:00:46]} Na5 {[%emt 00:00:06] [%clk 00:01:58]} 24. Bf2 {[%emt 00:00:10]
[%clk 00:00:37]} Nc4 {[%emt 00:00:10] [%clk 00:01:51]} 25. Rab1 {[%emt 00:00:17]
[%clk 00:00:21]} Rd3 {[%emt 00:00:09] [%clk 00:01:44]} 26. Kg2 {[%emt 00:00:07]
[%clk 00:00:16]} g5 {[%emt 00:00:18] [%clk 00:01:28]} 27. fxg5 {[%emt 00:00:02]
[%clk 00:00:16]} hxg5 {[%clk 00:01:29]} 28. g4 {[%emt 00:00:05] [%clk 00:00:14]}
Rxf3 {[%emt 00:00:11] [%clk 00:01:20]} 29. Kxf3 {[%emt 00:00:05] [%clk
00:00:11]} Nd2+ {[%clk 00:01:21]} 30. Kg2 {[%emt 00:00:09] [%clk 00:00:04]} Nxb1
{[%emt 00:00:03]} 31. Rxb1 {[%clk 00:00:05]} fxg4 {[%emt 00:00:01] [%clk
00:01:23]} 32. hxg4 {[%emt 00:00:01] [%clk 00:00:06]} Rxg4+ {[%emt 00:00:01]
[%clk 00:01:24]} 33. Kf3 {[%clk 00:00:07]} Rxa4 {[%emt 00:00:03] [%clk
00:01:24]} 34. b4 {[%clk 00:00:08]} Ra3 {[%emt 00:00:48] [%clk 00:00:38]} 35.
bxc5 {[%emt 00:00:02] [%clk 00:00:07]} Rxc3+ {[%clk 00:00:39]} 36. Ke4 {[%clk
00:00:08]} bxc5 {[%emt 00:00:05] [%clk 00:00:36]} 37. Kd5 {[%emt 00:00:06] [%clk
00:00:03]} a5 {[%emt 00:00:25] [%clk 00:00:14]} 38. Rb7+ {[%clk 00:00:04]} Kg6
{[%clk 00:00:15]} 39. Bxc5 {[%emt 00:00:01] [%clk 00:00:05]} Kf5 {[%emt
00:00:08] [%clk 00:00:09]} 40. Rf7 {[%emt 00:00:01] [%clk 00:00:06]} Rd3+ {[%emt
00:00:02] [%clk 00:00:09]} 41. Kc4 {[%emt 00:00:01] [%clk 00:00:08]} Rd1 {[%emt
00:00:02] [%clk 00:00:09]} 42. Be7 {[%emt 00:00:01] [%clk 00:00:08]} Ke6 {[%emt
00:00:02] [%clk 00:00:08]} 43. Rxf6+ {[%emt 00:00:01] [%clk 00:00:09]} Kxe7
{[%emt 00:00:01] [%clk 00:00:10]} 44. Rf5 {[%emt 00:00:01] [%clk 00:00:10]} Rg1
{[%emt 00:00:05] [%clk 00:00:06]} 45. Rxa5 {[%clk 00:00:11]} g4 {[%emt 00:00:02]
[%clk 00:00:07]} 46. Kd3 {[%clk 00:00:13]} Kf6 {[%emt 00:00:01] [%clk 00:00:08]}
47. Ke2 {[%clk 00:00:14]} Rg3 {[%emt 00:00:04] [%clk 00:00:05]} 48. Kf2 {[%emt
00:00:02] [%clk 00:00:15]} Rf3+ {[%emt 00:00:01] [%clk 00:00:06]} 49. Kg2 {[%clk
00:00:16]} Rf5 {[%emt 00:00:01] [%clk 00:00:07]} 50. Rxf5+ {[%emt 00:00:03]
[%clk 00:00:15]} Kxf5 {[%clk 00:00:08]} 51. Kg3 {[%clk 00:00:17]} Kg5 {[%emt
00:00:01] [%clk 00:00:09]} 52. Kg2 {[%clk 00:00:19]} Kf4 {[%emt 00:00:02] [%clk
00:00:09]} 53. Kf2 {[%clk 00:00:20]} g3+ {[%clk 00:00:10]} 54. Kg2 {[%clk
00:00:21]} Kg4 {[%emt 00:00:02] [%clk 00:00:12]} 55. Kg1 {[%clk 00:00:22]} Kf3
{[%clk 00:00:13]} 56. Kf1 {[%clk 00:00:24]} g2+ {[%clk 00:00:14]} 57. Kg1 {[%clk
00:00:25]} Kg3 {[%clk 00:00:13]} 1/2-1/2

[Site "Europe Echecs"]

[Event "Championnat d'Europe de Blitz"]
[Date "2024.12.09"]
[White "Asllani, Muhamet"]
[Black "Mihov, Filip"]
[WhiteElo "2112"]
[BlackElo "2245"]
[Round "8.52"]
[Result "0-1"]
[TimeControl "180+2"]

1. d4 {[%clk 00:03:03]} d5 {[%emt 00:00:02] [%clk 00:03:02]} 2. Nf3 {[%emt
00:00:01] [%clk 00:03:04]} c5 {[%emt 00:00:02] [%clk 00:03:03]} 3. dxc5 {[%emt
00:00:02] [%clk 00:03:04]} e6 {[%emt 00:00:02] [%clk 00:03:03]} 4. e4 {[%emt
00:00:04] [%clk 00:03:02]} Bxc5 {[%emt 00:00:02] [%clk 00:03:03]} 5. exd5 {[%emt
00:00:02] [%clk 00:03:02]} exd5 {[%emt 00:00:01] [%clk 00:03:04]} 6. Bb5+ {[%emt
00:00:03] [%clk 00:03:01]} Nc6 {[%emt 00:00:06] [%clk 00:02:59]} 7. O-O {[%emt
00:00:04] [%clk 00:03:00]} Nge7 {[%emt 00:00:06] [%clk 00:02:55]} 8. Nc3 {[%emt
00:00:13] [%clk 00:02:50]} O-O {[%emt 00:00:03] [%clk 00:02:54]} 9. h3 {[%emt
00:00:03] [%clk 00:02:49]} Bf5 {[%emt 00:00:24] [%clk 00:02:31]} 10. Bf4 {[%emt
00:00:22] [%clk 00:02:29]} a6 {[%emt 00:00:17] [%clk 00:02:17]} 11. Bd3 {[%emt
00:00:03] [%clk 00:02:27]} d4 {[%emt 00:00:17] [%clk 00:02:02]} 12. Ne4 {[%emt
00:00:03] [%clk 00:02:26]} Ba7 {[%emt 00:00:02] [%clk 00:02:02]} 13. Re1 {[%emt
00:00:10] [%clk 00:02:18]} Nb4 {[%emt 00:00:05] [%clk 00:01:59]} 14. Ng3 {[%emt
00:00:36] [%clk 00:01:43]} Bxd3 {[%emt 00:00:04] [%clk 00:01:58]} 15. cxd3
{[%emt 00:00:02] [%clk 00:01:43]} Ng6 {[%emt 00:00:09] [%clk 00:01:51]} 16. Bg5
{[%clk 00:01:44]} Qd5 {[%emt 00:00:06] [%clk 00:01:47]} 17. a3 {[%emt 00:00:05]
[%clk 00:01:42]} Nc6 {[%clk 00:01:48]} 18. Rc1 {[%emt 00:00:07] [%clk 00:01:37]}
Rfe8 {[%emt 00:00:08] [%clk 00:01:43]} 19. Ne4 {[%emt 00:00:13] [%clk 00:01:26]}
Nge5 {[%emt 00:00:17] [%clk 00:01:27]} 20. Nxe5 {[%emt 00:00:10] [%clk
00:01:17]} Nxe5 {[%emt 00:00:05] [%clk 00:01:25]} 21. Bf4 {[%emt 00:00:09] [%clk
00:01:10]} Nc6 {[%emt 00:00:06] [%clk 00:01:21]} 22. Qf3 {[%emt 00:00:04] [%clk
00:01:07]} Rad8 {[%emt 00:00:11] [%clk 00:01:12]} 23. Qg3 {[%emt 00:00:06] [%clk
00:01:04]} Qf5 {[%emt 00:00:02] [%clk 00:01:12]} 24. b4 {[%emt 00:00:11] [%clk
00:00:56]} Qg6 {[%emt 00:00:04] [%clk 00:01:09]} 25. Qh4 {[%emt 00:00:12] [%clk
00:00:46]} Bb8 {[%emt 00:00:10] [%clk 00:01:01]} 26. Rc5 {[%emt 00:00:05] [%clk
00:00:44]} f5 {[%emt 00:00:20] [%clk 00:00:42]} 27. Bg5 {[%emt 00:00:13] [%clk
00:00:33]} Rc8 {[%emt 00:00:04] [%clk 00:00:40]} 28. Nf6+ {[%emt 00:00:24] [%clk
00:00:11]} gxf6 {[%emt 00:00:03] [%clk 00:00:39]} 29. Bf4 {[%clk 00:00:13]}
Rxe1+ {[%emt 00:00:03] [%clk 00:00:39]} 0-1

[Site "Europe Echecs"]

[Event "Championnat d'Europe de Blitz"]
[Date "2024.12.09"]
[White "Kesidis, Odyseas"]
[Black "Pacher, Milan"]
[WhiteElo "2241"]
[BlackElo "2310"]
[Round "8.53"]
[Result "1-0"]
[TimeControl "180+2"]

1. e4 {[%emt 00:00:01] [%clk 00:03:02]} e6 {[%emt 00:00:01] [%clk 00:03:03]} 2.
d4 {[%emt 00:00:03] [%clk 00:03:02]} d5 {[%emt 00:00:01] [%clk 00:03:04]} 3. e5
{[%emt 00:00:01] [%clk 00:03:03]} c5 {[%emt 00:00:01] [%clk 00:03:04]} 4. c3
{[%emt 00:00:01] [%clk 00:03:04]} Nc6 {[%emt 00:00:01] [%clk 00:03:04]} 5. Nf3
{[%emt 00:00:02] [%clk 00:03:05]} Qb6 {[%emt 00:00:01] [%clk 00:03:05]} 6. Bd3
{[%emt 00:00:02] [%clk 00:03:05]} cxd4 {[%emt 00:00:03] [%clk 00:03:04]} 7. O-O
{[%emt 00:00:04] [%clk 00:03:03]} Bd7 {[%emt 00:00:02] [%clk 00:03:04]} 8. cxd4
{[%emt 00:00:14] [%clk 00:02:51]} Nxd4 {[%emt 00:00:10] [%clk 00:02:57]} 9. Nbd2
{[%emt 00:00:05] [%clk 00:02:48]} Nxf3+ {[%emt 00:00:09] [%clk 00:02:49]} 10.
Nxf3 {[%emt 00:00:02] [%clk 00:02:48]} Ne7 {[%emt 00:00:02] [%clk 00:02:50]} 11.
Be3 {[%emt 00:00:05] [%clk 00:02:45]} Qd8 {[%emt 00:00:02] [%clk 00:02:49]} 12.
Ng5 {[%emt 00:00:31] [%clk 00:02:16]} Ng6 {[%emt 00:00:08] [%clk 00:02:43]} 13.
Qh5 {[%emt 00:00:15] [%clk 00:02:04]} Be7 {[%emt 00:00:14] [%clk 00:02:31]} 14.
Nxh7 {[%emt 00:00:16] [%clk 00:01:50]} Nf8 {[%emt 00:01:25] [%clk 00:01:08]} 15.
Nf6+ {[%emt 00:00:05] [%clk 00:01:47]} Bxf6 {[%clk 00:01:08]} 16. Qxh8 {[%emt
00:00:02] [%clk 00:01:47]} Bxe5 {[%clk 00:01:09]} 17. f4 {[%emt 00:00:14] [%clk
00:01:35]} Bd6 {[%emt 00:00:03] [%clk 00:01:08]} 18. Qxg7 {[%emt 00:00:10] [%clk
00:01:27]} Qe7 {[%clk 00:01:09]} 19. Rac1 {[%emt 00:00:07] [%clk 00:01:22]} Bc6
{[%emt 00:00:02] [%clk 00:01:10]} 20. f5 {[%emt 00:00:01] [%clk 00:01:23]} Qh4
{[%emt 00:00:24] [%clk 00:00:48]} 21. g3 {[%emt 00:00:06] [%clk 00:01:19]} Qh3
{[%emt 00:00:07] [%clk 00:00:43]} 22. fxe6 {[%emt 00:00:05] [%clk 00:01:16]}
O-O-O {[%emt 00:00:03] [%clk 00:00:42]} 23. Bf5 {[%emt 00:00:05] [%clk
00:01:12]} Qxf5 {[%emt 00:00:15] [%clk 00:00:29]} 24. Rxf5 {[%emt 00:00:03]
[%clk 00:01:12]} fxe6 {[%emt 00:00:02] [%clk 00:00:29]} 25. Rf7 {[%emt 00:00:05]
[%clk 00:01:09]} Nd7 {[%emt 00:00:01] [%clk 00:00:29]} 26. Bg5 {[%emt 00:00:07]
[%clk 00:01:05]} Be5 {[%emt 00:00:05] [%clk 00:00:26]} 27. Qh7 {[%emt 00:00:16]
[%clk 00:00:51]} Rh8 {[%emt 00:00:04] [%clk 00:00:24]} 28. Rxd7 {[%emt 00:00:07]
[%clk 00:00:46]} Bd4+ {[%emt 00:00:08] [%clk 00:00:17]} 29. Kg2 {[%emt 00:00:03]
[%clk 00:00:46]} 1-0

[Site "Europe Echecs"]

[Event "Championnat d'Europe de Blitz"]
[Date "2024.12.09"]
[White "Kralevski, Aleksander"]
[Black "Danov, Lyubomir"]
[WhiteElo "2028"]
[BlackElo "2297"]
[Round "8.54"]
[Result "0-1"]
[TimeControl "180+2"]

1. e4 {[%emt 00:00:01] [%clk 00:03:03]} c6 {[%emt 00:00:01] [%clk 00:03:03]} 2.
d4 {[%emt 00:00:01] [%clk 00:03:03]} d5 {[%clk 00:03:05]} 3. e5 {[%emt 00:00:02]
[%clk 00:03:03]} Bf5 {[%emt 00:00:02] [%clk 00:03:05]} 4. Nf3 {[%emt 00:00:03]
[%clk 00:03:02]} e6 {[%emt 00:00:02] [%clk 00:03:05]} 5. Be2 {[%emt 00:00:02]
[%clk 00:03:02]} Nd7 {[%emt 00:00:01] [%clk 00:03:06]} 6. O-O {[%emt 00:00:03]
[%clk 00:03:01]} f6 {[%emt 00:00:03] [%clk 00:03:06]} 7. Nh4 {[%emt 00:00:10]
[%clk 00:02:53]} fxe5 {[%emt 00:00:04] [%clk 00:03:03]} 8. Nxf5 {[%emt 00:00:02]
[%clk 00:02:53]} exf5 {[%emt 00:00:01] [%clk 00:03:04]} 9. dxe5 {[%emt 00:00:02]
[%clk 00:02:53]} Nxe5 {[%emt 00:00:02] [%clk 00:03:03]} 10. Re1 {[%emt 00:00:04]
[%clk 00:02:52]} Be7 {[%emt 00:00:08] [%clk 00:02:57]} 11. Bh5+ {[%emt 00:00:10]
[%clk 00:02:44]} Ng6 {[%emt 00:00:08] [%clk 00:02:51]} 12. Bg5 {[%emt 00:00:13]
[%clk 00:02:33]} Kf7 {[%emt 00:00:10] [%clk 00:02:43]} 13. Bxe7 {[%emt 00:00:47]
[%clk 00:01:48]} N8xe7 {[%emt 00:00:01] [%clk 00:02:43]} 14. Nd2 {[%emt
00:00:04] [%clk 00:01:47]} Rf8 {[%emt 00:00:17] [%clk 00:02:28]} 15. Nf3 {[%emt
00:00:01] [%clk 00:01:47]} Kg8 {[%emt 00:00:03] [%clk 00:02:27]} 16. Qe2 {[%emt
00:00:16] [%clk 00:01:34]} Qd6 {[%emt 00:00:10] [%clk 00:02:18]} 17. g3 {[%emt
00:00:09] [%clk 00:01:28]} Qf6 {[%emt 00:00:14] [%clk 00:02:05]} 18. h4 {[%emt
00:00:09] [%clk 00:01:22]} Rae8 {[%emt 00:00:18] [%clk 00:01:49]} 19. c3 {[%emt
00:00:05] [%clk 00:01:19]} Rd8 {[%emt 00:00:47] [%clk 00:01:04]} 20. Ng5 {[%emt
00:00:04] [%clk 00:01:17]} Nc8 {[%emt 00:00:06] [%clk 00:01:00]} 21. Qe3 {[%emt
00:00:20] [%clk 00:00:59]} Kh8 {[%emt 00:00:20] [%clk 00:00:43]} 22. Qe6 {[%emt
00:00:05] [%clk 00:00:56]} Rd6 {[%emt 00:00:26] [%clk 00:00:19]} 23. Qe2 {[%emt
00:00:15] [%clk 00:00:42]} f4 {[%emt 00:00:05] [%clk 00:00:15]} 24. Bxg6 {[%emt
00:00:03] [%clk 00:00:42]} Qxg6 {[%emt 00:00:01] [%clk 00:00:16]} 25. Qd2 {[%emt
00:00:10] [%clk 00:00:33]} h6 {[%emt 00:00:07] [%clk 00:00:12]} 26. Nh3 {[%emt
00:00:29] [%clk 00:00:05]} fxg3 {[%emt 00:00:02] [%clk 00:00:13]} 27. f4 {[%emt
00:00:04] [%clk 00:00:03]} Qg4 {[%emt 00:00:04] [%clk 00:00:11]} 28. Kg2 {[%emt
00:00:01] [%clk 00:00:04]} Rdf6 {[%emt 00:00:04] [%clk 00:00:09]} 29. Re5 {[%emt
00:00:07] [%clk 00:00:00]} Nd6 {[%emt 00:00:01] [%clk 00:00:09]} 30. Rae1 {[%emt
00:00:03] [%clk 00:00:00]} Nc4 {[%clk 00:00:09]} 31. Qe2 {[%emt 00:00:03] [%clk
00:00:00]} 0-1

[Site "Europe Echecs"]

[Event "Championnat d'Europe de Blitz"]
[Date "2024.12.09"]
[White "Van Foreest, Jorden"]
[Black "Korobov, Anton"]
[WhiteElo "2677"]
[BlackElo "2629"]
[Round "9.1"]
[Result "1-0"]
[TimeControl "180+2"]

1. e4 {[%clk 00:03:03]} e6 {[%emt 00:00:02] [%clk 00:03:03]} 2. d4 {[%emt
00:00:05] [%clk 00:02:59]} d5 {[%emt 00:00:01] [%clk 00:03:04]} 3. Nc3 {[%emt
00:00:02] [%clk 00:03:00]} Nf6 {[%clk 00:03:05]} 4. e5 {[%emt 00:00:05] [%clk
00:02:57]} Nfd7 {[%emt 00:00:01] [%clk 00:03:06]} 5. f4 {[%emt 00:00:02] [%clk
00:02:57]} c5 {[%emt 00:00:02]} 6. Nf3 {[%clk 00:02:58]} Be7 {[%emt 00:00:01]
[%clk 00:03:08]} 7. Be3 {[%emt 00:00:06] [%clk 00:02:54]} O-O {[%emt 00:00:02]
[%clk 00:03:07]} 8. Qd2 {[%emt 00:00:04] [%clk 00:02:53]} b6 {[%emt 00:00:02]
[%clk 00:03:08]} 9. h4 {[%emt 00:00:03] [%clk 00:02:51]} Ba6 {[%emt 00:00:14]
[%clk 00:02:56]} 10. Bxa6 {[%emt 00:00:07] [%clk 00:02:46]} Nxa6 {[%emt
00:00:01] [%clk 00:02:57]} 11. h5 {[%emt 00:00:10] [%clk 00:02:38]} Rc8 {[%emt
00:00:24] [%clk 00:02:35]} 12. Ne2 {[%emt 00:00:23] [%clk 00:02:17]} cxd4 {[%emt
00:00:03] [%clk 00:02:34]} 13. Nexd4 {[%emt 00:00:19] [%clk 00:01:59]} Nac5
{[%emt 00:00:01] [%clk 00:02:35]} 14. O-O-O {[%emt 00:00:11] [%clk 00:01:51]}
Ne4 {[%emt 00:00:01] [%clk 00:02:35]} 15. Qe1 {[%emt 00:00:01] [%clk 00:01:52]}
b5 {[%emt 00:00:45] [%clk 00:01:52]} 16. f5 {[%emt 00:00:05] [%clk 00:01:50]}
Qb6 {[%emt 00:00:10] [%clk 00:01:44]} 17. Kb1 {[%emt 00:00:50] [%clk 00:01:03]}
Ndc5 {[%emt 00:00:04] [%clk 00:01:41]} 18. f6 {[%emt 00:00:28] [%clk 00:00:37]}
gxf6 {[%emt 00:00:02] [%clk 00:01:41]} 19. Qh4 {[%emt 00:00:01] [%clk 00:00:38]}
Kh8 {[%emt 00:00:13] [%clk 00:01:30]} 20. Rhf1 {[%emt 00:00:17] [%clk 00:00:24]}
Qd8 {[%emt 00:00:07] [%clk 00:01:24]} 21. exf6 {[%emt 00:00:08] [%clk 00:00:17]}
Bxf6 {[%emt 00:00:01] [%clk 00:01:25]} 22. Qh2 {[%emt 00:00:05] [%clk 00:00:15]}
Na4 {[%emt 00:00:45] [%clk 00:00:41]} 23. Ne5 {[%emt 00:00:05] [%clk 00:00:11]}
Qe7 {[%emt 00:00:02] [%clk 00:00:41]} 24. Ndc6 {[%emt 00:00:02] [%clk 00:00:12]}
Nec3+ {[%emt 00:00:17] [%clk 00:00:27]} 25. Ka1 {[%clk 00:00:13]} Nxd1 {[%emt
00:00:03] [%clk 00:00:26]} 26. Nxe7 {[%emt 00:00:03] [%clk 00:00:12]} Nxe3
{[%emt 00:00:01] [%clk 00:00:27]} 27. Nxc8 {[%emt 00:00:04] [%clk 00:00:11]}
Nxf1 {[%emt 00:00:13] [%clk 00:00:15]} 28. Qf4 {[%emt 00:00:01] [%clk 00:00:12]}
Bg7 {[%emt 00:00:07] [%clk 00:00:11]} 29. h6 {[%clk 00:00:13]} 1-0

[Site "Europe Echecs"]